[Event "44th Chess Olympiad Open 2022"]
[Site "Chennai"]
[Date "2022.08.01"]
[Round "4.16"]
[White "Stanojoski, Zvonko"]
[Black "Navara, David"]
[Result "1/2-1/2"]
[WhiteElo "2412"]
[BlackElo "2688"]
[Annotator "TA"]
[PlyCount "155"]
[EventDate "2022.??.??"]
[TimeControl "60"]

{[%evp 14,155,41,36,27,34,27,22,25,20,32,0,0,0,0,0,0,0,0,0,0,0,0,0,17,0,0,-10,
-10,-5,0,-12,0,0,0,-49,-49,-61,-84,-81,-64,-75,-80,-72,-58,-192,-189,-292,-282,
-291,-286,-282,-282,-286,-286,-414,-414,-414,-414,-414,-201,-201,-201,-201,
-201,-201,-180,-201,-180,-201,-110,-127,0,-58,0,-70,0,-4,-4,-4,0,0,0,0,0,0,0,0,
0,0,0,0,0,0,0,0,0,0,0,0,0,0,0,0,0,0,0,0,0,0,0,0,0,0,0,0,0,0,0,0,0,0,0,0,0,0,0,
0,0,0,0,0,0,0,0,0,0,0,0,0,0,0,0,0]} 1. e4 {[%emt 0:00:15]} c6 {[%emt 0:00:04]}
2. d4 {[%emt 0:00:25]} d5 {[%emt 0:00:05]} 3. Nc3 {[%emt 0:00:27]} dxe4 {
[%emt 0:00:05]} 4. Nxe4 {[%emt 0:00:06]} Nf6 {[%emt 0:00:07]} 5. Nxf6+ {
[%emt 0:02:19]} exf6 {[%emt 0:00:09]} 6. c3 {[%emt 0:00:20]} Bd6 {[%emt 0:00:
00]} 7. Bd3 {[%emt 0:00:08]} O-O {[%emt 0:00:08]} 8. Qc2 {[%emt 0:00:03]
Active counter play!} Re8+ {[%emt 0:00:07] B15: Caro-Kann: 3 Nc3:3...g6 and 3.
..dxe4 4 Nxe4 Nf6 5 Nxf6+ exf6.} 9. Ne2 {[%emt 0:00:06]} h5 {[%emt 0:00:10]}
10. O-O {[%emt 0:00:15]} h4 {[%emt 0:00:16]} 11. h3 {[%emt 0:01:11]} Nd7 {
[%emt 0:00:48]} 12. Bf4 {[%emt 0:01:08]} Nf8 {[%emt 0:01:11][%cal Ye8e2] [#]
White must now prevent ...Rxe2!} (12... Rxe2 $2 13. Qxe2 Bxf4 14. Qe4 $18) 13.
Bxd6 {[%emt 0:00:19]} Qxd6 {[%emt 0:00:07]} 14. Rfe1 {[%emt 0:01:16]} Bd7 {
[%emt 0:04:21]} 15. Rad1 {[%emt 0:02:27]} Re7 {[%emt 0:18:15]} 16. Nc1 {
[%emt 0:08:37]} Rae8 {[%emt 0:04:55]} 17. Rxe7 {[%emt 0:01:27]} Rxe7 {[%emt 0:
00:00]} 18. Qd2 {[%emt 0:04:55] [#]} Ne6 $146 {[%emt 0:22:54]} ({Predecessor:} 
18... Ng6 19. Ne2 a5 20. c4 b6 21. b3 f5 22. Bc2 Kf8 23. Bd3 Kg8 24. Qc2 Nf4
25. Nxf4 Qxf4 {1-0 (70) Demchenko,A (2641)-Mahajan,R (2151) Chess.com INT 2020}
) 19. Bf5 {[%emt 0:09:48]} g5 {[%emt 0:03:30][%cal Yg7g5,Yg5g4]} 20. Bxe6 {
[%emt 0:03:50]} Qxe6 {[%emt 0:09:14]} 21. b3 {[%emt 0:04:37]} g4 {[%emt 0:07:
26]} 22. Qh6 {[%emt 0:09:11]} g3 {[%emt 0:10:32][%cal Ye6e1] ( -> .. .Qe1+!)}
23. Qd2 {[%emt 0:02:25] Inhibits Qe1+.} Qe4 {[%emt 0:04:02]} 24. Nd3 {[%emt 0:
05:29]} (24. Rf1 $11) 24... Qe2 $1 $15 {[%emt 0:00:42]} 25. Qxe2 {[%emt 0:03:
44]} Rxe2 {[%emt 0:00:07]} 26. fxg3 {[%emt 0:00:03]} hxg3 {[%emt 0:00:00]
Endgame KRB-KRN} 27. Nf4 {[%emt 0:02:15]} Rxa2 {[%emt 0:00:00]} 28. Nh5 {
[%emt 0:00:21][%csl Yf6,Yg3]} Bf5 {[%emt 0:01:40] ...Bc2 is the strong threat.}
(28... Be6 $5 {[%cal Re6b3]} 29. c4 Bf5 $15) 29. Nxg3 {[%emt 0:07:47]} ({
White should play} 29. b4 $1 $15) 29... Bc2 $19 {[%emt 0:00:00][%csl Yb3,Yd1]}
30. Rd2 {[%emt 0:00:19]} (30. Rf1 $142 a5 31. Ne2) 30... Bxb3 {[%emt 0:01:04]}
31. Rxa2 {[%emt 0:00:26]} Bxa2 {[%emt 0:00:05] KB-KN} 32. Kf2 {[%emt 0:04:13]}
a5 {[%emt 0:01:06][%cal Ya7a5,Ya5a4]} 33. Ke3 {[%emt 0:00:40]} a4 {[%emt 0:07:
00]} 34. Nh5 {[%emt 0:02:51]} (34. h4 $142) 34... Bd5 {[%emt 0:01:37]} 35. Kd3
{[%emt 0:05:04]} Bxg2 {[%emt 0:00:23]} 36. Nf4 {[%emt 0:00:10] [#]} Bf1+ {
[%emt 0:01:35]} (36... a3 $142 $1 37. Kc2 (37. Nxg2 $2 a2 $19) 37... Bd5) 37.
Kc2 {[%emt 0:00:10]} Bc4 {[%emt 0:00:33] Hoping for ...a3.} 38. Kb2 {[%emt 0:
00:07]} Kf8 {[%emt 0:00:33]} 39. Ka3 {[%emt 0:00:00]} Bb3 {[%emt 0:00:04]} 40.
h4 {[%emt 0:00:49]} b6 {[%emt 0:00:13]} 41. Kb4 {[%emt 0:33:20]} c5+ {[%emt 0:
02:08]} (41... f5 $19 42. Nd3 b5) 42. Ka3 $17 {[%emt 0:00:00]} Ke7 {[%emt 0:02:
15]} (42... cxd4 $17 43. cxd4 b5) 43. Kb2 {[%emt 0:00:00]} (43. h5 $1 $11)
43... Bd1 {[%emt 0:02:33]} (43... cxd4 $15 44. cxd4 Be6) 44. Ka3 {[%emt 0:00:
00]} (44. h5 $11) 44... Kd6 {[%emt 0:01:40]} (44... cxd4 $15 45. cxd4 b5) 45.
h5 {[%emt 0:00:00] The position is equal.} Bc2 {[%emt 0:03:52]} 46. h6 {
[%emt 0:00:00]} b5 {[%emt 0:02:13]} 47. Kb2 {[%emt 0:00:00]} Bh7 {[%emt 0:03:
35]} 48. dxc5+ {[%emt 0:00:00]} Kc6 {[%emt 0:04:12]} (48... Kxc5 $5 49. Nh5 Bf5
$11) 49. Nh5 {[%emt 0:00:00]} f5 {[%emt 0:00:19]} 50. Nf6 {[%emt 0:00:00]} Bg6
{[%emt 0:00:05] aiming for ...f4.} 51. h7 $1 {[%emt 0:00:00]} Bxh7 {[%emt 0:00:
09]} 52. Nxh7 {[%emt 0:00:00]} Kxc5 $11 {[%emt 0:00:00] KN-KP} (52... f4 $5 53.
Ng5 Kd5 $11) 53. Ng5 {[%emt 0:00:00]} f4 {[%emt 0:00:00] And now ...Kd5 would
win.} 54. Nxf7 {[%emt 0:00:00] KN-K3P} Kd5 {[%emt 0:00:13]} 55. Ng5 {[%emt 0:
00:15]} Ke5 {[%emt 0:00:12]} 56. Ka3 {[%emt 0:00:00]} Kf5 {[%emt 0:00:10]} 57.
Nh3 {[%emt 0:00:58]} Kg4 {[%emt 0:00:14]} 58. Nf2+ {[%emt 0:00:05]} Kf3 {
[%emt 0:00:11]} 59. Nh3 {[%emt 0:00:08]} Kg3 {[%emt 0:02:29]} (59... Kg4 $5 60.
Nf2+ Kg3 61. Ne4+ Kg2 $11) 60. Ng5 {[%emt 0:00:00]} Kg4 {[%emt 0:00:06]} 61.
Ne4 {[%emt 0:00:24]} f3 {[%emt 0:00:37]} 62. Kb4 {[%emt 0:02:15]} Kf4 {[%emt 0:
00:11]} 63. Nd2 {[%emt 0:00:21]} f2 {[%emt 0:00:00]} 64. c4 {[%emt 0:01:33]}
Ke3 {[%emt 0:00:25]} 65. Nf1+ {[%emt 0:00:10]} Ke2 {[%emt 0:00:05]} 66. Ng3+ {
[%emt 0:00:58]} (66. cxb5 {leads to mate.} Kxf1 67. Kxa4 Kg2 68. Ka5 f1=Q 69.
b6 Qf3 70. Kb5 Qb7 71. Kc5 Kf3 72. Kd4 Kf4 73. Kd3 Qxb6 74. Kc4 Ke4 75. Kc3
Qc5+ 76. Kd2 Qb4+ 77. Kc2 Ke3 78. Kc1 Kd3 79. Kd1 Qd2#) 66... Kf3 {[%emt 0:00:
07]} 67. Nf1 {[%emt 0:00:04]} a3 {[%emt 0:00:16]} 68. Kxa3 {[%emt 0:00:09]
KN-KPP} Ke2 {[%emt 0:01:05]} (68... bxc4 $5 69. Kb2 Kf4 $11) 69. Ng3+ {[%emt 0:
00:06]} Kf3 {[%emt 0:00:05]} 70. Nf1 {[%emt 0:00:05]} bxc4 {[%emt 0:00:04]} 71.
Kb2 $1 {[%emt 0:00:24]} Ke2 {[%emt 0:00:13]} 72. Ng3+ {[%emt 0:00:03]} Kf3 {
[%emt 0:00:32]} 73. Nf1 {[%emt 0:00:07]} Ke2 {[%emt 0:00:04]} 74. Ng3+ {
[%emt 0:00:07]} Kd2 {[%emt 0:00:20] Strongly threatening ...c3+.} 75. Ne4+ {
[%emt 0:00:20]} Ke1 {[%emt 0:00:09]} 76. Nxf2 {[%emt 0:00:10]} Kxf2 {[%emt 0:
00:03]} 77. Kc3 {[%emt 0:00:04]} Ke3 {[%emt 0:00:00]} 78. Kxc4 {[%emt 0:00:03]
White happily takes the draw. Weighted Error Value: White=0.15 (very precise) /
Black=0.12 (very precise)} 1/2-1/2

[Event "44th Chess Olympiad Open 2022"]
[Site "Chennai"]
[Date "2022.08.01"]
[Round "4.16"]
[White "Nikolovski, Nikola"]
[Black "Michalik, Peter"]
[Result "0-1"]
[WhiteElo "2366"]
[BlackElo "2559"]
[Annotator "TA"]
[PlyCount "76"]
[EventDate "2022.??.??"]
[TimeControl "60"]

{[%evp 11,75,-30,-26,-28,-34,-29,-23,-44,0,-33,-41,-44,0,-2,15,11,13,8,32,18,8,
19,26,-28,-30,-58,-21,-2,0,0,0,0,0,0,10,13,20,0,0,0,0,0,0,-67,-8,-8,0,0,0,0,37,
31,310,0,511,-713,-713,-695,-659,-563,-436,-29997,-29998,-29998,-29999,-29999]
} 1. f4 {[%emt 0:00:07]} d5 {[%emt 0:00:14]} 2. Nf3 {[%emt 0:00:24]} g6 {
[%emt 0:00:20]} 3. e3 {[%emt 0:01:07]} Bg7 {[%emt 0:00:11]} 4. Be2 {[%emt 0:00:
00]} Nf6 {[%emt 0:04:22]} 5. O-O {[%emt 0:00:15]} O-O {[%emt 0:00:03]} 6. d3 {
[%emt 0:00:32]} b6 {[%emt 0:02:24]} 7. a4 {[%emt 0:10:50] A03: Bird's Opening
with 1...d5.} c5 {[%emt 0:02:27] [#]} 8. a5 $146 {[%emt 0:07:37]} ({
Predecessor:} 8. Kh1 Bb7 9. Ne5 Nfd7 10. Nxd7 Nxd7 11. Nd2 e5 12. f5 Nf6 13. b3
e4 14. Bb2 exd3 15. Bxd3 {½-½ (35) Lilja,R (2131)-Garabetyan,A (2056) Lublin
2022}) 8... b5 {[%emt 0:03:14]} 9. Ne5 {[%emt 0:04:19] Black has an edge.} Ne8
{[%emt 0:06:14]} 10. Bf3 {[%emt 0:14:02]} f6 {[%emt 0:03:04]} 11. Ng4 {[%emt 0:
00:00][%cal Yc2c4]} Nc6 {[%emt 0:04:29]} 12. c4 {[%emt 0:02:26]} Bxg4 {[%emt 0:
00:00]} 13. Bxg4 {[%emt 0:00:44]} bxc4 {[%emt 0:00:22]} 14. dxc4 {[%emt 0:00:
00]} d4 {[%emt 0:00:20]} 15. Bf3 {[%emt 0:13:48]} Rc8 {[%emt 0:00:08]} 16. Bd5+
{[%emt 0:01:57]} Kh8 {[%emt 0:00:06]} 17. e4 {[%emt 0:00:54]} ({Better is} 17.
f5) 17... Nb4 $11 {[%emt 0:11:51]} ({Resist} 17... Nxa5 18. Qa4 e6 19. Bxe6 $16
) 18. f5 {[%emt 0:08:00]} Nxd5 {[%emt 0:00:32]} (18... gxf5 {is interesting.}
19. Ra3 fxe4 20. Rh3 e3) 19. exd5 {[%emt 0:01:34]} gxf5 {[%emt 0:00:27]} 20.
Ra3 {[%emt 0:02:26]} Nd6 {[%emt 0:06:15]} 21. Rh3 {[%emt 0:00:06] aiming for
Qh5.} Qe8 {[%emt 0:00:17]} 22. Nd2 {[%emt 0:09:36]} Rc7 {[%emt 0:07:35]} 23. b3
{[%emt 0:03:54]} Rg8 {[%emt 0:07:51]} 24. Nf3 {[%emt 0:00:13]} e5 {[%emt 0:00:
00] Hoping for ...Bf8.} 25. dxe6 $1 {[%emt 0:00:05][%cal Yb3b4]} Bf8 {[%emt 0:
00:00]} 26. Nh4 {[%emt 0:06:35]} Re7 {[%emt 0:03:26]} 27. b4 {[%emt 0:00:52]} (
27. Qd3 $11) 27... Rxe6 {[%emt 0:01:55]} (27... cxb4 $15 28. Bb2 (28. Qxd4 Rxe6
29. Be3 Nxc4 $17) 28... Rxe6) 28. bxc5 {[%emt 0:00:04]} Ne4 {[%emt 0:01:15]
And now ...Nc3 would win.} 29. Nxf5 {[%emt 0:01:05]} Bxc5 {[%emt 0:01:39]
White must now prevent ...d3+.} 30. Qd3 $1 {[%emt 0:00:05][%cal Yh3h7]
Intending Rxh7+! and mate.} Qd7 {[%emt 0:05:41]} 31. Rh4 {[%emt 0:01:35]} Qb7 {
[%emt 0:00:40]} (31... Nc3 $14 32. Bd2 Re2) 32. Rf3 $2 {[%emt 0:00:00]} (32. a6
$1 $18 {[%cal Ra6b7]} Qc6 33. Ng3) 32... Nc3 $2 {[%emt 0:02:11] [#]} (32... Ng5
$11 {and Black is okay.} 33. Bxg5 Rxg5) 33. Ng3 $4 {[%emt 0:00:38]} (33. Rxh7+
$3 $18 Qxh7 34. Rh3 Re1+ 35. Kf2 Rxc1 36. Rxh7+ Kxh7 37. Qh3+ Kg6 38. Qg4+ Kf7
39. Nh6+ Ke7 40. Nxg8+ Kf8 41. Qf5 Ne4+ 42. Qxe4 d3+ 43. Kg3) 33... Re1+ $19 {
[%emt 0:00:42]} 34. Rf1 {[%emt 0:00:06] [#]} Ne2+ $1 {[%emt 0:00:38]} 35. Kf2 {
[%emt 0:00:52]} Nxc1 {[%emt 0:00:58]} 36. Qf5 {[%emt 0:00:35] [#]} (36. Qxh7+
$19 Qxh7 37. Rxh7+ Kxh7 38. Kxe1) 36... Re2+ $3 {[%emt 0:03:06] Black mates.}
37. Nxe2 {[%emt 0:00:28]} Qxg2+ {[%emt 0:00:23]} 38. Ke1 {[%emt 0:00:06]} Qxe2#
{[%emt 0:00:40] Weighted Error Value: White=0.67/Black=0.48} 0-1

[Event "44th Chess Olympiad Open 2022"]
[Site "Chennai"]
[Date "2022.08.01"]
[Round "4.17"]
[White "Mchedlishvili, Mikheil"]
[Black "Ibarra Chami, Luis Fernando"]
[Result "1-0"]
[WhiteElo "2593"]
[BlackElo "2452"]
[Annotator "TA"]
[PlyCount "57"]
[EventDate "2022.??.??"]
[TimeControl "60"]

{[%evp 15,57,15,31,0,0,0,0,0,0,13,22,19,16,0,0,0,0,0,0,0,0,6,14,24,18,28,29,28,
37,25,47,36,22,0,12,0,0,0,826,826,826,826,29993,58]} 1. e4 {[%emt 0:00:06]} c5
{[%emt 0:00:52]} 2. Nf3 {[%emt 0:00:24]} Nc6 {[%emt 0:00:14]} 3. Bb5 {[%emt 0:
00:00]} g6 {[%emt 0:00:57]} 4. O-O {[%emt 0:00:43]} Bg7 {[%emt 0:00:55]} 5. c3
{[%emt 0:00:47]} e5 {[%emt 0:01:00]} 6. d4 {[%emt 0:01:07]} cxd4 {[%emt 0:00:
00]} 7. cxd4 {[%emt 0:00:07]} exd4 {[%emt 0:00:10]} 8. Bf4 {[%emt 0:01:02]} a6
{[%emt 0:00:18]} 9. Ba4 {[%emt 0:00:58] White has compensation. B31: Sicilian:
2...Nc6 3 Bb5 g6.} Nge7 {[%emt 0:01:11] The main line 9...Nge7 scores better
than 9...b5.} 10. Bd6 {[%emt 0:01:19]} b5 {[%emt 0:00:17]} 11. Bb3 {[%emt 0:01:
07] The position is equal.} Bb7 {[%emt 0:00:27]} 12. Ng5 {[%emt 0:04:05]} O-O {
[%emt 0:01:17]} 13. Qf3 {[%emt 0:01:33][%cal Rb3f7]} Qe8 {[%emt 0:00:08]} (
13... h6 $2 14. Nxf7 Rxf7 15. Qxf7+ Kh7 16. a4 $18) 14. Qg3 {[%emt 0:01:00]}
Na5 {[%emt 0:07:47] Strongly threatening ...h6.} 15. Nd2 {[%emt 0:24:57][%cal
Yg5h7]} h6 {[%emt 0:32:47]} 16. Ngf3 {[%emt 0:02:27]} Rc8 {[%emt 0:05:26]} 17.
Ne5 {[%emt 0:08:23]} Nxb3 {[%emt 0:07:34]} 18. Nxb3 {[%emt 0:06:13]} Bxe4 {
[%emt 0:04:01] [#] Threatens to win with ...Nf5.} 19. Nxd4 {[%emt 0:01:20]} Nf5
{[%emt 0:12:13]} 20. Nxf5 {[%emt 0:01:18]} Bxf5 {[%emt 0:00:08] A strong pair
of Bishops.} 21. Rfe1 {[%emt 0:02:19]} Qd8 {[%emt 0:06:53] White must now
prevent ...Re8.} 22. Bxf8 {[%emt 0:02:20]} Qxf8 {[%emt 0:00:30]} 23. Rad1 {
[%emt 0:03:12]} Qb4 {[%emt 0:02:24] [#]} 24. b3 $146 {[%emt 0:08:08]} (24. Nd3
$5 {[%cal Rd3b4]} Qf8 25. Qe3 $14) ({Predecessor:} 24. Qb3 Qxb3 25. axb3 Rc2
26. Nxd7 Bxb2 27. Re8+ Kg7 28. h3 a5 29. Ra8 Bc3 30. Nb6 {½-½ (37) Liang,J 
(2460)-Dukic,Z (2234) Hamilton 2022}) 24... Rc2 {[%emt 0:05:31]} 25. Qe3 {
[%emt 0:02:09]} Rxa2 {[%emt 0:05:45]} 26. Nxd7 {[%emt 0:02:34] [#] aiming for
Qe8+.} Bc3 $2 {[%emt 0:00:07]} (26... Kh7 $11) 27. Qe8+ $18 {[%emt 0:06:48]}
Kg7 {[%emt 0:01:42]} 28. Re7 {[%emt 0:00:00][%csl Ge8][%cal Re7f7]} Be6 {
[%emt 0:01:24]} 29. Qf8+ {[%emt 0:00:00] Weighted Error Value: White=0.06 
(flawless) /Black=0.28 (precise)} 1-0

[Event "44th Chess Olympiad Open 2022"]
[Site "Chennai"]
[Date "2022.08.01"]
[Round "4.17"]
[White "Pantsulaia, Levan"]
[Black "Montes Orozco, Miguel Angel"]
[Result "1-0"]
[WhiteElo "2581"]
[BlackElo "2070"]
[Annotator "TA"]
[PlyCount "125"]
[EventDate "2022.??.??"]
[TimeControl "60"]

{[%evp 11,125,-12,8,15,22,-2,2,-6,5,0,0,0,0,0,0,0,0,0,0,0,0,0,0,2,5,-26,-26,
-27,30,12,55,38,54,54,54,54,54,54,70,69,72,72,86,86,86,79,79,79,79,70,70,70,72,
54,72,52,65,58,79,69,79,79,109,79,79,79,79,79,79,79,79,79,79,79,79,79,83,81,81,
79,79,79,81,70,84,84,91,91,91,91,91,84,91,91,91,91,91,91,91,91,91,81,127,127,
127,127,127,97,97,97,6409,6409,6402,2677,5708,5623]} 1. Nf3 {[%emt 0:00:04]} d5
{[%emt 0:00:19]} 2. g3 {[%emt 0:00:28]} Nf6 {[%emt 0:00:13]} 3. Bg2 {[%emt 0:
00:00]} e6 {[%emt 0:00:56]} 4. O-O {[%emt 0:00:15]} Be7 {[%emt 0:00:31]} 5. d3
{[%emt 0:00:23][%cal Yd2d3,Yd3d4,Yd4e5]} O-O {[%emt 0:02:08]} 6. Nbd2 {[%emt 0:
00:06][%cal Yb1d2,Yd2b3,Yb3d4]} Nc6 {[%emt 0:14:00]} 7. d4 {[%emt 0:04:18] [#]
A07: Réti Opening: New York and Capablanca Systems.} b5 $146 {[%emt 0:03:35]}
({Predecessor:} 7... Ne4 8. c3 f5 9. Ne1 e5 10. Ndf3 Bf6 11. e3 b6 12. Nd3 Re8
13. Re1 Ba6 14. Bh3 Bxd3 15. Qxd3 {½-½ (30) Rapport,R (2763)-Nakamura,H 
(2736) Berlin 2022}) 8. Nb3 {[%emt 0:06:21]} a5 {[%emt 0:00:00]} 9. a4 {
[%emt 0:02:10] The position is equal.} Ba6 {[%emt 0:04:10]} 10. Ne5 {[%emt 0:
16:33]} Nxe5 {[%emt 0:05:28]} 11. dxe5 {[%emt 0:03:45]} Nd7 {[%emt 0:00:00]}
12. axb5 {[%emt 0:08:29]} Bxb5 {[%emt 0:00:09]} 13. Nd4 {[%emt 0:00:04]} Qb8 {
[%emt 0:06:30]} 14. b3 {[%emt 0:00:38][%cal Yc2c4] [#] aiming for c4!} Nxe5 {
[%emt 0:12:51]} 15. c4 $36 {[%emt 0:01:21] White is pushing.} Bd7 {[%emt 0:00:
56]} 16. cxd5 {[%emt 0:02:50]} exd5 {[%emt 0:00:19]} 17. Bxd5 {[%emt 0:00:07]}
Ra6 {[%emt 0:00:20]} 18. Qc2 {[%emt 0:09:14]} Rd6 $1 {[%emt 0:00:00]} 19. Rxa5
{[%emt 0:06:46]} Qb6 {[%emt 0:26:19]} (19... c6 $142 20. Bg2 Rxd4) 20. Qc5 {
[%emt 0:11:02]} Rd8 {[%emt 0:00:23]} (20... Bg4 $5 {[%cal Rd6d7]} 21. Bb2 Rd7
$11) 21. Bg2 {[%emt 0:01:03] [#] And now Qxb6 would win.} Qxc5 {[%emt 0:02:21]}
22. Rxc5 {[%emt 0:00:07]} Rxd4 {[%emt 0:00:06]} 23. Rxe5 {[%emt 0:00:05]} Be6 {
[%emt 0:00:04]} 24. Be3 {[%emt 0:06:01]} Rb4 {[%emt 0:00:00]} 25. Bc5 {[%emt 0:
00:41]} Bxc5 {[%emt 0:00:17]} 26. Rxc5 {[%emt 0:00:05]} Rd7 {[%emt 0:00:55]}
27. Rfc1 {[%emt 0:01:54]} Rxb3 {[%emt 0:00:16]} 28. f4 {[%emt 0:03:20] Hoping
for f5.} ({Avoid the trap} 28. Rxc7 $2 Rxc7 29. Rd1 (29. Rxc7 $2 {loses.} Rb1+
30. Bf1 Bh3 $19) 29... Rd7 $19) 28... g6 {[%emt 0:00:23] Prevents f5.} 29. Rxc7
{[%emt 0:00:50]} Rd2 {[%emt 0:00:06]} 30. Bf3 {[%emt 0:00:00]} h5 {[%emt 0:00:
11]} 31. R7c2 {[%emt 0:01:38]} Rd4 {[%emt 0:00:42]} 32. Rc3 {[%emt 0:03:55]}
Rb2 {[%emt 0:00:14]} 33. h4 {[%emt 0:00:59]} Kg7 {[%emt 0:00:00]} 34. Kf2 {
[%emt 0:00:39]} Rdd2 {[%emt 0:00:18]} 35. Rc7 {[%emt 0:00:21]} Rd6 {[%emt 0:02:
08]} 36. Ra1 {[%emt 0:00:52]} Ra2 {[%emt 0:00:19]} 37. Rb1 {[%emt 0:00:24]} Rd7
{[%emt 0:00:04]} 38. Rxd7 {[%emt 0:00:30]} Bxd7 $16 {[%emt 0:00:04] Endgame
KRB-KRB} 39. Bd5 {[%emt 0:00:16]} Rd2 {[%emt 0:00:06]} 40. Bc4 {[%emt 0:00:07]}
Rd4 {[%emt 0:00:14]} 41. Bd3 {[%emt 0:00:00]} Be6 {[%emt 0:30:55]} 42. Rb5 {
[%emt 0:00:35]} Kf6 {[%emt 0:00:28]} 43. Rg5 {[%emt 0:00:41]} Bg4 {[%emt 0:00:
00]} 44. Ra5 {[%emt 0:00:00]} Be6 {[%emt 0:00:00]} 45. Ra6 {[%emt 0:00:00]} Kg7
{[%emt 0:00:00]} 46. Ke3 {[%emt 0:00:00]} Rb4 {[%emt 0:00:00]} 47. Ra5 {
[%emt 0:00:00]} Kf6 {[%emt 0:00:00]} 48. Kd2 {[%emt 0:00:00]} Rd4 {[%emt 0:00:
00]} 49. Kc3 {[%emt 0:00:00]} Rd7 {[%emt 0:00:00]} 50. e4 {[%emt 0:00:00]} Rc7+
{[%emt 0:00:00]} 51. Kd4 {[%emt 0:00:00]} Rd7+ {[%emt 0:00:00]} 52. Ke3 {
[%emt 0:00:00]} Re7 {[%emt 0:00:00]} 53. Ra6 {[%emt 0:00:00] Strongly
threatening f5.} Kg7 {[%emt 0:00:00]} 54. Rd6 {[%emt 0:00:00]} Bg4 {[%emt 0:00:
00]} 55. Kd4 {[%emt 0:00:00]} Ra7 {[%emt 0:00:00]} 56. Bc4 {[%emt 0:00:00]} Kf8
{[%emt 0:00:00]} (56... Ra4 $142) 57. Bd5 {[%emt 0:00:00]} Kg7 {[%emt 0:00:00]}
58. Rb6 {[%emt 0:00:00]} Re7 {[%emt 0:00:00]} 59. Kc5 {[%emt 0:00:00]} Bf3 {
[%emt 0:00:00]} 60. Kd6 {[%emt 0:00:00] White is more active.} Rxe4 {[%emt 0:
00:00]} (60... Ra7 $16 61. Rb7 Rxb7 62. Bxb7 f5) 61. Bxe4 $18 {[%emt 0:00:00]
White is clearly winning.} Bxe4 {[%emt 0:00:00]} 62. Ke7 {[%emt 0:00:00]} Bf5 {
[%emt 0:00:00]} 63. Rf6 {[%emt 0:00:00] Weighted Error Value: White=0.05 
(flawless) /Black=0.08 (flawless)} 1-0

[Event "44th Chess Olympiad Open 2022"]
[Site "Chennai"]
[Date "2022.08.01"]
[Round "4.17"]
[White "Hernandez Guerrero, Gilberto"]
[Black "Jobava, Baadur"]
[Result "0-1"]
[WhiteElo "2560"]
[BlackElo "2585"]
[Annotator "TA"]
[PlyCount "92"]
[EventDate "2022.??.??"]
[TimeControl "60"]

{[%evp 13,92,0,8,15,37,-32,-26,-52,-16,-35,-1,-20,0,-21,-19,-21,-9,-21,0,0,0,
-8,0,-39,0,-7,-8,-6,-28,-30,-1,-28,16,-87,-79,-167,-166,-156,-151,-143,-152,
-156,-99,-131,-145,-214,-187,-186,-141,-159,-151,-148,-131,-177,-136,-197,-66,
-54,-68,-73,-81,-195,0,0,0,-12,0,-438,-411,-438,-431,-435,-416,-710,-702,-734,
-734,-656,-635,-473,-377]} 1. e4 {[%emt 0:00:18]} c6 {[%emt 0:00:28]} 2. Nf3 {
[%emt 0:00:10]} d5 {[%emt 0:00:07]} 3. d3 {[%emt 0:00:06]} g6 {[%emt 0:03:55]}
4. Nbd2 {[%emt 0:03:02]} Bg7 {[%emt 0:00:28]} 5. g3 {[%emt 0:00:07]} Nh6 {
[%emt 0:06:46]} 6. Bg2 {[%emt 0:00:36]} O-O {[%emt 0:00:17]} 7. O-O {[%emt 0:
00:00]} e5 {[%emt 0:00:58]} 8. Re1 {[%emt 0:04:40] B10: Caro-Kann: 2 d3 and 2
c4.} f6 {[%emt 0:01:53] [#]} 9. b3 $146 {[%emt 0:07:12]} ({White should try} 9.
exd5 $14 cxd5 10. b4) ({Predecessor:} 9. a4 Re8 10. c3 Be6 11. Qc2 Nf7 12. b3
Na6 13. Bb2 Qc7 14. h4 Rad8 15. Bf1 c5 {½-½ (24) Petricenco,A (1915)-Bargan,
V (1706) Kishinev 2022}) 9... Nf7 {[%emt 0:01:03]} 10. Bb2 {[%emt 0:01:04]
Black has an edge.} Na6 {[%emt 0:00:48]} 11. a3 {[%emt 0:10:42]} Nc7 {[%emt 0:
00:00]} 12. b4 {[%emt 0:06:17]} Rb8 {[%emt 0:10:09]} 13. exd5 {[%emt 0:03:45]}
cxd5 {[%emt 0:00:09]} 14. c4 {[%emt 0:00:08]} d4 {[%emt 0:01:15]} 15. a4 {
[%emt 0:00:29]} Re8 {[%emt 0:02:04]} 16. b5 {[%emt 0:01:00]} Bf8 {[%emt 0:00:
00]} 17. Qb3 {[%emt 0:02:49]} Ne6 {[%emt 0:00:41]} 18. Ba3 {[%emt 0:00:10]} Kg7
{[%emt 0:01:43]} 19. Ne4 {[%emt 0:02:26]} b6 {[%emt 0:03:09]} 20. Bxf8+ {
[%emt 0:10:49]} Rxf8 {[%emt 0:00:13]} 21. a5 {[%emt 0:02:40]} Bb7 {[%emt 0:00:
00]} 22. Qa3 {[%emt 0:01:44]} g5 {[%emt 0:06:19][%cal Yg6g5,Yg5g4]} 23. h3 {
[%emt 0:08:23]} (23. Bh3 $11 Bxe4 24. Rxe4) 23... h5 $17 {[%emt 0:00:00]} 24.
Nh2 {[%emt 0:02:12]} (24. Qb2 $17 {was called for.}) 24... f5 $19 {[%emt 0:05:
14]} 25. Nd2 {[%emt 0:00:11]} Bxg2 {[%emt 0:01:05]} 26. Kxg2 {[%emt 0:00:04]}
g4 {[%emt 0:00:14]} 27. h4 {[%emt 0:02:27]} Qf6 {[%emt 0:02:28]} (27... Nc5
$142 $1 28. f3 Qd7 29. fxg4 hxg4) 28. axb6 {[%emt 0:03:33]} axb6 {[%emt 0:01:
55]} 29. Qb2 {[%emt 0:01:18]} (29. Nb3 $17) 29... Nc5 {[%emt 0:00:00]} 30. Qc2
{[%emt 0:00:12]} f4 {[%emt 0:04:10]} 31. Ne4 {[%emt 0:04:03]} Nxe4 {[%emt 0:00:
10]} 32. Rxe4 {[%emt 0:00:41]} Nd6 {[%emt 0:00:26]} 33. Ree1 {[%emt 0:00:08]}
Rf7 {[%emt 0:01:35]} 34. Kg1 {[%emt 0:03:30]} (34. Nf1 $17) 34... Nb7 {[%emt 0:
04:21]} (34... fxg3 $19 35. fxg3 e4 36. dxe4 Qe5) 35. Ra7 {[%emt 0:01:23]} Nc5
$36 {[%emt 0:00:24] Black is more active.} (35... Kf8 {seems wilder.} 36. Qe2
Re8 37. Nf1 Nc5) 36. Rxf7+ {[%emt 0:00:19]} Kxf7 {[%emt 0:00:04]} 37. Nf1 {
[%emt 0:01:40] [#]} (37. gxf4 $17 exf4 38. Qa2) 37... Qf5 $2 {[%emt 0:02:14]} (
37... Ra8 $1 $19 {Hoping for ...Ra3.} 38. Rd1 Ra3 39. gxf4 Qxf4) 38. gxf4 $1
$11 {[%emt 0:00:12]} exf4 {[%emt 0:08:42][%cal Ye5f4,Yf4f3] And now ...Ra8
would win.} (38... Qxd3 39. Qa2 Qf3 40. Rxe5) 39. Qe2 {[%emt 0:00:30] aiming
for Qe7+.} Qf6 {[%emt 0:14:45] Inhibits Qe7+. Active counter play!} ({Resist} 
39... Nxd3 40. Qe7+ Kg8 41. Re6 $16) 40. Nd2 $2 {[%emt 0:07:19] [#]} (40. Qa2
$1 $11) 40... f3 $1 $19 {[%emt 0:00:51]} 41. Qe5 {[%emt 0:34:32]} Qxe5 {
[%emt 0:30:10]} 42. Rxe5 {[%emt 0:00:05]} Re8 {[%emt 0:04:52]} 43. Rf5+ {
[%emt 0:05:22]} (43. Rxe8 $142 Kxe8 44. Nf1) 43... Kg6 {[%emt 0:00:06] Black
is clearly winning.} 44. Rg5+ {[%emt 0:00:06]} Kf6 {[%emt 0:01:12]} 45. Rxh5 {
[%emt 0:00:00]} Re1+ {[%emt 0:00:00]} 46. Kh2 {[%emt 0:00:00][%cal Yh5c5]} Nxd3
{[%emt 0:00:00] Weighted Error Value: White=0.38/Black=0.18 (very precise)} 0-1